Cogmind - Beta 17 @@@ ROGUE MODE // 2026.06.24 @ 22:28:35 Player: Scottariah Result: Destroyed by HL-72H(R) with Subdweller Laser Performance ------------- Evolutions (0) 0 Regions Visited (2) 400 Robots Destroyed (56) 280 Value Destroyed (1192) 1192 Prototype IDs (17) 340 Alien Tech Used (0) 0 Bonus (5672) 5672 TOTAL SCORE: 7884 Bonus ------- Prayed to X0-1V1 5000 Major X0-1V1 Interference 700 Friendly Fire -28 Cogmind --------- Core Integrity 0/250 Matter 646/1100 Energy 1694/1700 System Corruption 0% Temperature Cool (13) Movement Rolling (150) Ox4 Location -10/Subcaves Parts ------- > --- POWER (1) -------- Subdweller Power Source > --- PROPULSION (2) --- Aluminum Leg Subdweller Monowheel > --- UTILITY (2) ------ Disposable Heat Sink Huge Storage Unit > --- WEAPON (2) ------- Subdweller Beam Cannon Subdweller Machine Gun > --- INVENTORY (25) --- Subdweller Power Source Maxwheels High-capacity Matter Pod (200) Subdweller Optics Signal Interpreter Seismic Detector Transport Network Coupler Makeshift Light Armor Plating Makeshift Kinetic Plating Tractor Beam Self-contained Transmogrifier Riot Gun Subdweller Laser Light Assault Rifle Subdweller Machine Gun Battle Cannon Grenade Launcher Subdweller Shrapnel Launcher Peak State ------------ > --- POWER ------------ Subdweller Power Source > --- PROPULSION ------- Aluminum Leg Subdweller Monowheel > --- UTILITY ---------- Huge Storage Unit X0-1V1's Piety Tracker > --- WEAPON ----------- Subdweller Machine Gun Heavy Battle Rifle > --- INVENTORY -------- Aluminum Leg Maxwheels Disposable Heat Sink High-capacity Matter Pod Subdweller Optics Signal Interpreter Seismic Detector Transport Network Coupler Makeshift Light Armor Plating Tractor Beam Self-contained Transmogrifier Subdweller Laser Subdweller Laser Subdweller Beam Cannon Light Assault Rifle Light Assault Rifle Subdweller Machine Gun Battle Cannon Grenade Launcher Subdweller Shrapnel Launcher [Rating: 32] Favorites ----------- Power Ion Engine Engine Ion Engine Power Core Light Nuclear Core Propulsion Light Treads Treads Light Treads Leg Aluminum Leg Wheel Subdweller Monowheel Utility Huge Storage Unit Device X0-1V1's Piety Tracker Storage Huge Storage Unit Protection Light Armor Plating Weapon Light Assault Rifle Energy Gun Medium Laser Energy Cannon Subdweller Beam Cannon Ballistic Gun Light Assault Rifle Ballistic Cannon Battle Cannon Launcher Grenade Launcher Build | -11 -10 -10 ------- Run | Yrd Mat Sub Slots Evolved . | . . . Power . | . . . Propulsion . | . . . Utility . | . . . Weapon . | . . . Parts Attached 45 | 9 8 28 Power 9 | 1 1 7 Engine 8 | 1 1 6 Core 1 | . . 1 Reactor . | . . . Propulsion 11 | 2 . 9 Treads 4 | 2 . 2 Leg 3 | . . 3 Wheel 4 | . . 4 Hover . | . . . Flight . | . . . Utility 9 | 3 4 2 Device 6 | 2 2 2 Storage 2 | 1 1 . Processor . | . . . Hackware . | . . . Protection 1 | . 1 . Artifact . | . . . Weapon 16 | 3 3 10 Energy Gun 2 | 1 . 1 Energy Cannon 2 | . . 2 Ballistic Gun 10 | 2 2 6 Ballistic Cannon 1 | . . 1 Launcher 1 | . 1 . Special Weapon . | . . . Impact Weapon . | . . . Slashing Weapon . | . . . Piercing Weapon . | . . . Special Melee Weapon . | . . . Unidentified Prototypes 1 | . 1 . Parts Lost 13 | . 2 11 Power 2 | . 1 1 Propulsion 5 | . . 5 Utility 3 | . 1 2 Weapon 3 | . . 3 Highest Loss Streak 4 | . 1 4 To Critical Strikes . | . . . Average Backups 21 | 3 17 23 Power . | . . . Propulsion 5 | 1 5 5 Utility 6 | . 5 7 Weapon 8 | . 5 9 Tool/Special . | . . . Unused Backups 32 | . 5 27 Power 1 | . . 1 Propulsion 7 | . . 7 Utility 11 | . 3 8 Weapon 12 | . 2 10 Tool/Special 1 | . . 1 Average Slot Usage (%) 99 | . 99 99 Engine 11 | . 13 9 Core 2 | . . 4 Treads 21 | . 27 17 Leg 3 | . . 5 Wheel 3 | . . 5 Device 12 | . 8 14 Storage 14 | . 14 14 Protection 1 | . 5 . Energy Gun 1 | . 3 . Energy Cannon 3 | . . 5 Ballistic Gun 20 | . 24 18 Ballistic Cannon 2 | . . 3 Peak Build Rating 32 | 7 21 32 Average Rating 20 | 5 8 26 On Entrance 9 | . 7 21 Avg Prop Armor Cover (%) 9 | . . 9 Naked Turns . | . . . Heaviest Build 98 | 15 91 98 Greatest Support 40 | 40 40 40 Greatest Overweight (x) 4 | . 2 4 Average Overweight (x) 2 | . 1 3 Largest Inventory Capacity 25 | 8 25 25 Average Capacity 24 | 6 23 25 Most Carried 25 | 7 25 25 Average Carried 21 | 3 17 24 Final Capacity 25 | 8 25 25 Final Carried 22 | 7 22 21 Class Distribution -------------------- 100% | Mutant Dominant Class ---------------- Mutant | -10/Materials Mutant | -10/Subcaves Resources | -11 -10 -10 ----------- Run | Yrd Mat Sub Matter Collected 1838 | 336 309 1193 Remotely 216 | 216 . . Salvage Created 1496 | 164 766 566 Parts 113 | 8 59 46 Haulers Intercepted 2 | . 2 . Recyclers Shooed 3 | 1 2 . Parts Field Recycled . | . . . Retrieved Matter . | . . . Parts Self-Destructed 35 | . . 35 Prevented . | . . . Parts Restored . | . . . Kills | -11 -10 -10 ------- Run | Yrd Mat Sub Combat Hostiles Destroyed 45 | . 22 23 Guns 34 | . 19 15 Cannons 6 | . . 6 AOE 5 | . 3 2 Classes Destroyed 10 | 2 5 3 Worker 1 | . 1 . Tunneler 3 | 3 . . Hauler 2 | . 2 . Recycler 2 | 1 1 . Turret 2 | . . 2 Watcher 1 | . 1 . Swarmer 23 | . 12 11 Grunt 10 | . 10 . Sentry 1 | . . 1 Subdweller 11 | . . 11 Best Kill Streak 8 | 4 8 4 Combat Bots Only 7 | . 7 4 Max Kills in Single Turn 2 | 2 2 1 Gunslinging . | . . . Exploded 2 | . 2 1 Melee . | . . . Uniques/NPCs Destroyed . | . . . Combat | -11 -10 -10 -------- Run | Yrd Mat Sub Hostile Shots Fired 280 | . 90 190 Missed 86 | . 31 55 Hits 194 | . 59 135 Projectile 194 | . 59 135 Critical Strikes 4 | . 2 2 Damage Taken 2536 | . 573 1963 Core 513 | . 99 414 Absorbed by Shields . | . . . Regen/Repaired (Parts) 97 | . 97 . Core Remaining (%) 100 | 100 . . Volleys Fired 149 | 12 55 82 Largest 2 | 2 2 2 Hottest 110 | 70 70 110 Shots Fired 302 | 24 110 168 Gun 249 | 24 108 117 Cannon 47 | . . 47 Launcher 6 | . 2 4 Special . | . . . Kinetic 257 | 12 105 140 Thermal 39 | 12 3 24 Explosive 6 | . 2 4 Electromagnetic . | . . . Robot Hit Streak 13 | 7 13 11 Robot Miss Streak 3 | 2 2 3 Penetration Max . | . . . Secondary Targets 3 | . 2 1 Max Gunslinging Chain 1 | . 1 1 Shots Hit Robots 191 | 14 77 100 Core Hits 81 | 5 37 39 Critical Kills 1 | . . 1 Critical Parts Destroyed . | . . . Critical Strikes 1 | . . 1 Destroy 1 | . . 1 Melee Attacks . | . . . Impact . | . . . Slashing . | . . . Piercing . | . . . Sneak Attacks . | . . . Combat Hostiles . | . . . Follow-up Attacks . | . . . Damage Inflicted 3265 | 185 1056 2024 Guns 2285 | 185 804 1296 Cannons 609 | . . 609 Explosions 340 | . 221 119 Melee . | . . . Ramming 31 | . 31 . Kinetic 2474 | 111 778 1585 Thermal 420 | 74 26 320 Explosive 340 | . 221 119 Electromagnetic . | . . . Impact . | . . . Slashing . | . . . Piercing . | . . . Highest Corruption 4 | . . 4 Average Corruption 2 | . . 2 Corruption Purged . | . . . Corruption Blocked . | . . . Effects 42 | . . 42 Message Errors 9 | . . 9 Matter Fused 9 | . . 9 Heat Flow Errors 8 | . . 8 Energy Discharges 2 | . . 2 Parts Rejected 1 | . . 1 Parts Fused 1 | . . 1 Data Loss (minor) 7 | . . 7 Misfires 4 | . . 4 Alerts 1 | . . 1 Overload Shots . | . . . Overflow Damage 12 | . 12 . Projectiles . | . . . Explosions 12 | . 12 . Melee . | . . . Knockbacks 3 | . . 3 Impact . | . . . Kinetic 3 | . . 3 Secondary . | . . . Self-Inflicted Damage . | . . . Shots . | . . . Rammed 2 | . 2 . Targets Rammed 3 | . 3 . Kicked . | . . . Crushed 1 | . 1 . Highest Temperature 300 | 108 49 300 Average Temperature 53 | 55 10 97 Received Heat Transfer 582 | . 207 375 Effects 1 | . . 1 Energy Bleed 1 | . . 1 Siege Activations . | . . . Martial Activations . | . . . Shielding Activations . | . . . Robots Disrupted . | . . . Combat Hostiles . | . . . Robots Corrupted . | . . . Combat Hostiles . | . . . Parts Fried . | . . . Impact Corruptions . | . . . Robots Melted . | . . . Combat Hostiles . | . . . Parts Melted . | . . . Heat Transferred 716 | 222 74 420 Parts Sabotaged . | . . . Parts Stolen . | . . . Parts Stripped . | . . . Power Chain Reactions . | . . . Alert | -11 -10 -10 ------- Run | Yrd Mat Sub Maximum Alert Level . | . . . Low Security (%) 100 | 100 100 . Level 1 . | . . . Level 2 . | . . . Level 3 . | . . . Level 4 . | . . . Level 5 . | . . . High Security . | . . . Max Security . | . . . Peak Influence 195 | 15 195 . Initial . | . . . Average 51 | 2 54 . Influence Increases 988 | 20 628 340 Destroy 0b10 Robot/C 720 | . 440 280 Destroy 0b10 Robot/NC 45 | 20 25 . Destroy Leader 86 | . 86 . Successful Hack 39 | . 39 . Disable Machine 15 | . 15 . Destroy Structure 8 | . 8 . Lose Combat Pursuer 75 | . 15 60 Influence Decreases 890 | 20 575 295 Entered New Map 26 | . . 26 Time Decay 630 | 20 421 189 Lost Part 100 | . 20 80 Purge Threat 134 | . 134 . Squads Dispatched 3 | . 3 . Investigation 2 | . 2 . Extermination . | . . . Reinforcement 1 | . 1 . Assault . | . . . Garrison . | . . . Intercept . | . . . Searches Triggered . | . . . Construction Impeded . | . . . Haulers Reinforced . | . . . Active Scanning Responses . | . . . Cargo Convoy Interrupts . | . . . Stealth | -11 -10 -10 --------- Run | Yrd Mat Sub Distress Signals 3 | . 3 . Communications Jammed . | . . . Distress Signals . | . . . Times Spotted 62 | . 35 27 Peak Tracking Total 4 | . 4 4 Tactical Retreats 4 | . 1 3 Traps | -11 -10 -10 ------- Run | Yrd Mat Sub Traps Triggered 6 | . 1 5 Indirectly . | . . . Trap Hack Attempts . | . . . Triggered . | . . . Disarmed . | . . . Reprogrammed . | . . . Reused . | . . . Traps Extracted . | . . . Installed 4 | . . 4 Triggered . | . . . Most Traps Carried 2 | . . 2 Machines | -11 -10 -10 ---------- Run | Yrd Mat Sub Machines Disabled 3 | . 1 2 Max in Single Turn 1 | . 1 1 Machines Repaired . | . . . Machines Dismantled . | . . . Machines Sabotaged . | . . . Overloaded Fab Kills . | . . . Hacking | -11 -10 -10 --------- Run | Yrd Mat Sub Machines Accessed 12 | . 10 2 Terminals 7 | . 7 . Fabricators . | . . . Repair Stations 1 | . 1 . Recycling Units 2 | . 2 . Scanalyzers . | . . . Garrison Access . | . . . Total Hacks 45 | . 33 12 Successful 33 | . 21 12 Failed 12 | . 12 . Catastrophic 1 | . 1 . Database Lockouts . | . . . Manual 31 | . 31 . Terminals 26 | . 26 . Fabricators . | . . . Repair Stations 3 | . 3 . Recycling Units 4 | . 4 . Scanalyzers . | . . . Garrison Access . | . . . Terminal Hacks 18 | . 6 12 Record 11 | . . 11 Robot Analysis 4 | . 4 . Prototype ID Bank 1 | . 1 . Unreport Threat 1 | . 1 . Proto ID Catalog 1 | . . 1 Fabricator Hacks . | . . . Repair Station Hacks 3 | . 3 . Scan Component 2 | . 2 . Repair 1 | . 1 . Recycling Unit Hacks . | . . . Scanalyzer . | . . . Garrison Access Hacks . | . . . Unauthorized Hacks 12 | . 12 . Terminals 11 | . 11 . Botnet 6 | . 6 . Skim 5 | . 5 . Fabricators . | . . . Repair Stations . | . . . Recycling Units 1 | . 1 . Mask 1 | . 1 . Scanalyzers . | . . . Garrison Access . | . . . Data Cores Recovered . | . . . Used . | . . . Hacking Detections 8 | . 8 . Full Trace Events 1 | . 1 . Feedback Events . | . . . Feedback Blocked . | . . . Robot Schematics Acquired . | . . . Robots Built . | . . . Authchips . | . . . Time . | . . . Total Robot Build Rating . | . . . Part Schematics Acquired . | . . . Parts Built . | . . . Authchips . | . . . Time . | . . . Total Part Build Rating . | . . . Part Studies Acquired . | . . . Parts Repaired 1 | . 1 . Time 26 | . 26 . Parts Recycled . | . . . Recycled Matter . | . . . Retrieved Matter . | . . . Retrieved Components . | . . . Parts Scanalyzed . | . . . Part Schematics Acquired . | . . . Parts Damaged . | . . . Bothacking | -11 -10 -10 ------------ Run | Yrd Mat Sub Used RIF Installer . | . . . Robots Hacked . | . . . Non-combat . | . . . Combat . | . . . Robot Hacks Applied . | . . . Relay Couplers Released . | . . . Fabnet Peak Effective % . | . . . Robots Rewired . | . . . Allies Hacked . | . . . Hacks Repelled . | . . . Allies | -11 -10 -10 -------- Run | Yrd Mat Sub Total Allies . | . . . Largest Group . | . . . Highest-Rated Group . | . . . Highest-Rated Ally . | . . . Total Orders . | . . . Ally Attacks . | . . . Total Damage . | . . . Kills . | . . . Allies Corrupted . | . . . Allies Melted . | . . . X0-1V1 Amusement Gains 72 | . 22 50 Good Acts 12 | . . 12 Bad Acts 13 | . . 13 Intel | -11 -10 -10 ------- Run | Yrd Mat Sub Active Infowar (turns) 519 | 20 499 . Seismic 519 | 20 499 . Robot Analysis Total 4 | . 4 . Derelict Logs Recovered 2 | . . 2 Drone Launches . | . . . Drone Recoveries . | . . . Exploration | -11 -10 -10 ------------- Run | Yrd Mat Sub Turns Passed 6236 | 128 2120 3988 Spaces Moved 2244 | 49 638 1557 Core 7 | 7 . . Treads 1381 | 42 638 701 Legs . | . . . Wheels 856 | . . 856 Hover . | . . . Flight . | . . . Fastest Speed 50 | 50 160 150 Average Speed 243 | 144 292 226 Slowest Speed 320 | 160 320 320 Overloaded Moves . | . . . Propulsion Burnouts . | . . . Robots Hopped . | . . . Potential Cave-ins . | . . . Cave-ins Triggered . | . . . Exploration Rate (%) 61 | 4 96 85 Regions Visited 2 Branch Regions 1 Pre-discovered Areas 1 | . . 1 Known Exits Taken 1 | . 1 . Unknown Exits Taken 1 | 1 . . Scrap Searched 14 | . . 14 Spaces Dug . | . . . Terrain Destroyed 33 | . 6 27 Melee . | . . . Projectile 5 | . . 5 AOE 28 | . 6 22 Terrain Rammed . | . . . Walls Destroyed . | . . . Machines Disabled . | . . . Actions | -11 -10 -10 --------- Run | Yrd Mat Sub Total 2735 | 78 791 1866 Wait 174 | . 53 121 Move 2242 | 48 637 1557 Hop . | . . . Pick Up 69 | 8 24 37 Fast Attach 11 | 6 2 3 Attach 15 | 1 2 12 Detach 2 | . . 2 Swap 26 | 3 6 17 Drop 40 | . 9 31 Fire 149 | 12 55 82 Melee . | . . . Ram . | . . . Kick . | . . . Crush 3 | . 3 . Escape Stasis . | . . . Rewire . | . . . Trap 4 | . . 4 Miscellaneous . | . . . Route ------- -11/Scrapyard -10/Materials (discovered 6 exits: *Mat x3 / *Min x2 / *Sub) -10/Subcaves (discovered 2 exits: [*Rec] / [*Scr]) History --------- Turn | Location | Event 13 | -11/Scrapyard | Discovered new exit (range 15) 129 | -11/Scrapyard | Entered Materials 302 | -10/Materials | Build established: Mutant 464 | -10/Materials | Discovered new exit (range 16) 642 | -10/Materials | Discovered new exit (range 14) 786 | -10/Materials | Discovered new exit (range 3) 1028 | -10/Materials | Learned 2 Mines zone layouts 1104 | -10/Materials | Learned 4 Recycling zone layouts 1168 | -10/Materials | Identified exit to Mines 1168 | -10/Materials | Identified exit to Subcaves 1168 | -10/Materials | Identified exit to Materials 1220 | -10/Materials | Learned location of 2 exits from Mines 1310 | -10/Materials | Learned 4 Materials zone layouts 1368 | -10/Materials | Learned location of 1 exit from Recycling 1398 | -10/Materials | Destroyed 7 combat bots 1752 | -10/Materials | Repaired Lgt. Treads 2230 | -10/Materials | Prayed at D.C.S.S. Altar Unit 2249 | -10/Materials | Entered Subcaves 2250 | -10/Subcaves | Approached by a straggling Scientist 2501 | -10/Subcaves | Core integrity fell below 50% 3147 | -10/Subcaves | Matter capacity permanently improved by X0-1V1 (+200) 3844 | -10/Subcaves | Discovered new exit (range 16) 3853 | -10/Subcaves | Core integrity fell below 20% 3921 | -10/Subcaves | Disturbed a concealed Subdweller 3952 | -10/Subcaves | Core integrity permanently improved by X0-1V1 (+200) 4087 | -10/Subcaves | Scientist uncovered a shortcut to Scraptown 4683 | -10/Subcaves | X0-1V1 activates XOMVISION 4921 | -10/Subcaves | Energy capacity permanently improved by X0-1V1 (+200) 5017 | -10/Subcaves | Learned Materials trap positions 5072 | -10/Subcaves | Visited 4L-MR0's lab 5087 | -10/Subcaves | Found Maxwheels 5092 | -10/Subcaves | Found Prototype Device 5333 | -10/Subcaves | Core integrity restored by X0-1V1 (+62) 5380 | -10/Subcaves | Learned location of Recycling (-7) 5802 | -10/Subcaves | X0-1V1 sent hostile S-10 Pest (x4) 5966 | -10/Subcaves | Visited Clippyterm 5971 | -10/Subcaves | Learned Factory trap positions 5983 | -10/Subcaves | X0-1V1 sent hostile S-10 Pest (x4) 6237 | -10/Subcaves | Destroyed by HL-72H(R) with Subdweller Laser Last Messages --------------- 06005_ Destroyed Unknown Flight Unit. 06006_ Unknown Flight Unit fries itself beyond repair. 06007_ S-10 Pest destroyed. 06008_ Lgt. Assault Rifle fries itself beyond repair. 06008_ Unknown Flight Unit fries itself beyond repair. 06015_ Lgt. Ion Engine fries itself beyond repair. 06018_ Unknown Flight Unit fries itself beyond repair. 06077_ X0-1V1 is getting bored... 06126_ X0-1V1: "I had everything to do with that." 06138_ X0-1V1: "In a world full of sensor tech, vision is overrated." (-8 sight range) 06187_ Acquired 12 matter. 06217_ Sight range returns to normal. 06225_ Battle Rifle destroyed. 06231_ Hvy. Battle Rifle destroyed. 06233_ Sub. Monowheel destroyed. 06233_ X0-1V1's Piety Tracker destroyed. 06233_ X0-1V1 is mildly amused. 06234_ X0-1V1 is amused. 06237_ X0-1V1 chortles! Map ----- +----------------------------------------------------+ | ##?????????????????????????????????# ##???? | | #?????????????????????????????????# ### ##??? | | #?????????????????????????????????##??## ##?? | | #??????????????????????????????????????# #?? | | #??????????????????????????????????????## #?? | | ##???????#####?????????????#####?????????## ##?? | | ##???##### #???????????### ##???????###& ##?? | | ##### #?????????### #???????# & #?? | | ####?###### #??????##&!! #?? | | ## ### #####??## #?? | | ## ## #### ###?? | | ## ## #???? | | ### ### ## ## #???? | | ##?####?## ##### #?? | | ####?????## ##???# ##### #?? | | # #??????### ##???# ##???? #?? | | #????????## #??# ## #????? #?? | | ##????????# ### ### ##????? ##?? | | # # #????????## #? ##?????? #??? | | ##### #?????????# ## #### #???????# #??? | | ??## ##?????????# ## #### #????????##??? | | ?## ##??????????# ## # ##???????????? | | ##[ #??????????### ##; ##??????????? | | # ###??????????# ""## #??????????? | | %#???????????## ""### ## ????????????? | | ###???######### "##?# @ ##?# ????????????? | | #???### ## # ####?# #??? ????????????? | | #???# ## ## ##???# ## ""#????????????????? | | ###### ### ##???# ""#?#RR ####????????????????? | | # ## #####???# ""?? ##???????????????????? | | ##??????# "??? ##????????????????????? | | #??????# ???? ##?????????????????????? | | #### #??????# #????? ???????????????????????? | | # ####?????? ????????? ???????????????????????? | | ## #??????????????????? ???????????????????????? | | ## #??????????????????? ???????????????????????? | | ######???????????????????"???????????????????????? | | #????????????????????????#???????????????????????? | | #????????????????????????????????????????????????? | | ?????????????????????????????????????????????????? | | ?????????????????????????????????????????????????? | | ?????????????????????????????????????????????????? | | ?????????????????????????????????????????????????? | | ?????????????????????????????????????????????????? | | ?????????????????????????????????????????????????? | | ?????????????????????????????????????????????????? | | ?????????????????????????????????????????????????? | | ?????????????????????????????????????????????????? | | ?????????????????????????????????????????????????? | | ?????????????????????????????????????????????????? | +----------------------------------------------------+ Best States ------------- Heat Dissipation 35 Coolant Potential 50 Energy Generation 15 Energy Capacity 1700 Matter Stores 809 Matter Capacity 1100 Sight Range 16 Terrain Scan Density 10 Armor Coverage 150 Evasion (%) 40 Recoil Reduction 2 Item Schematics ----------------- None Robot Schematics ------------------ None Fabricated ------------ Nothing Repaired ---------- Lgt. Treads | 30% | -10/Materials Studied --------- None Alien Tech Used ----------------- None Achievements -------------- None Challenges ------------ None Game ------ Seed TractorHeatModule Manual? 0 Play Time 00:31:08 Cumulative 115.9 hours Start 2026.06.24 @ 21:59:28 End 2026.06.24 @ 22:28:35 Sessions 1 Manual Loads 0 Difficulty Rogue Special Mode None Game No. 144 Rogue 144 Adventurer 0 Explorer 0 Win Type - Total 0 Types 0/0/0/0/0/0/0/0/0/0 Lore% 53 Gallery% 46 Achievement% 36 Wizard Run 0 Options --------- Layout 0 ASCII 0 Keyboard 0 Movement Arrows Keybinds 1 Fullscreen 2 Font 24/X11 Map View 76x50 Zoom Use 28% Tactical HUD 1 Map Filters NONE Filters NONE Steam 1 RUN: 2f32eae6-1a28-4718-b20e-7ad8a5844440